[Event "Titled Tuesday Blitz April 26 Late 2022"]
[White "Rosenberg, Evan S"]
[Black "Fiorito, Fabian"]
[WhiteFideId "2019299"]
[BlackFideId "100200"]
[WhiteElo "2367"]
[BlackElo "2395"]
[Result "1-0"]
[Round "10"]
[TimeControl "180+1"]
[Date "2022.04.26"]
[WhiteClock "0:01:25"]
[BlackClock "0:01:52"]

1. Nf3 {[%clk 0:02:59]}  d5 {[%clk 0:02:59]} 2. c4 {[%clk 0:03:00]}  c6 {[%clk 0:02:59]} 3. d4 {[%clk 0:03:00]}  Nf6 {[%clk 0:02:59]} 4. cxd5 {[%clk 0:03:00]}  cxd5 {[%clk 0:02:59]} 5. Nc3 {[%clk 0:03:01]}  g6 {[%clk 0:02:59]} 6. Bf4 {[%clk 0:03:00]}  Bg7 {[%clk 0:02:59]} 7. e3 {[%clk 0:03:00]}  O-O {[%clk 0:03:00]} 8. h3 {[%clk 0:03:00]}  Nc6 {[%clk 0:03:00]} 9. Rc1 {[%clk 0:02:56]}  Ne4 {[%clk 0:02:58]} 10. Nxe4 {[%clk 0:02:47]}  dxe4 {[%clk 0:02:58]} 11. Nd2 {[%clk 0:02:44]}  f5 {[%clk 0:02:57]} 12. Bc4+ {[%clk 0:02:43]}  Kh8 {[%clk 0:02:57]} 13. h4 {[%clk 0:02:36]}  h5 {[%clk 0:02:54]} 14. a3 {[%clk 0:02:17]}  Bd7 {[%clk 0:02:42]} 15. Rh3 {[%clk 0:02:16]}  a6 {[%clk 0:02:34]} 16. Rg3 {[%clk 0:02:16]}  Kh7 {[%clk 0:02:34]} 17. Rg5 {[%clk 0:02:12]}  Be8 {[%clk 0:02:26]} 18. f3 {[%clk 0:01:58]}  Bh6 {[%clk 0:02:20]} 19. fxe4 {[%clk 0:01:54]}  Bxg5 {[%clk 0:02:19]} 20. Bxg5 {[%clk 0:01:53]}  fxe4 {[%clk 0:02:19]} 21. Nxe4 {[%clk 0:01:53]}  Qa5+ {[%clk 0:02:10]} 22. Rc3 {[%clk 0:01:31]}  Qxg5 {[%clk 0:02:09]} 23. Nxg5+ {[%clk 0:01:30]}  Kh6 {[%clk 0:01:56]} 24. e4 {[%clk 0:01:25]}  Bd7 {[%clk 0:01:55]} 25. Qd2 {[%clk 0:01:24]}  Kg7 {[%clk 0:01:53]} 26. Ne6+ {[%clk 0:01:24]}  Bxe6 {[%clk 0:01:52]} 27. Bxe6 {[%clk 0:01:25]}  Rad8 {[%clk 0:01:53]} 28. d5 {[%clk 0:01:25]}  Ne5 {[%clk 0:01:53]} 29. Qd4 {[%clk 0:01:25]}  Kf6 {[%clk 0:01:52]} 30. Rf3+ {[%clk 0:01:25]} 1-0


[Site "https://www.chess.com"]

[Event "Titled Tuesday Blitz April 26 Late 2022"]
[White "Sevian, Samuel"]
[Black "Moskalenko, Alexander"]
[WhiteFideId "2040506"]
[BlackFideId "4155351"]
[WhiteElo "2698"]
[BlackElo "2434"]
[Result "1-0"]
[Round "10"]
[TimeControl "180+1"]
[Date "2022.04.26"]
[WhiteClock "0:00:40"]
[BlackClock "0:00:04"]

1. b3 {[%clk 0:03:00]}  e5 {[%clk 0:02:59]} 2. Bb2 {[%clk 0:03:01]}  Nc6 {[%clk 0:03:00]} 3. Nf3 {[%clk 0:03:01]}  Nf6 {[%clk 0:03:00]} 4. Nxe5 {[%clk 0:03:01]}  d5 {[%clk 0:02:59]} 5. Nf3 {[%clk 0:02:59]}  Bd6 {[%clk 0:02:59]} 6. e3 {[%clk 0:02:59]}  O-O {[%clk 0:03:00]} 7. Be2 {[%clk 0:02:59]}  Re8 {[%clk 0:03:00]} 8. O-O {[%clk 0:02:59]}  Bg4 {[%clk 0:02:58]} 9. d4 {[%clk 0:02:58]}  Ne7 {[%clk 0:02:52]} 10. c4 {[%clk 0:02:57]}  c6 {[%clk 0:02:52]} 11. Nbd2 {[%clk 0:02:56]}  Ng6 {[%clk 0:02:49]} 12. h3 {[%clk 0:02:55]}  Bd7 {[%clk 0:02:45]} 13. Rc1 {[%clk 0:02:53]}  Qe7 {[%clk 0:02:44]} 14. Bd3 {[%clk 0:02:52]}  Ne4 {[%clk 0:02:40]} 15. Qe2 {[%clk 0:02:37]}  Rad8 {[%clk 0:02:33]} 16. cxd5 {[%clk 0:02:36]}  cxd5 {[%clk 0:02:32]} 17. Rc2 {[%clk 0:02:36]}  Rf8 {[%clk 0:02:23]} 18. Rfc1 {[%clk 0:02:32]}  f5 {[%clk 0:02:08]} 19. Ne5 {[%clk 0:02:29]}  Nxe5 {[%clk 0:02:07]} 20. dxe5 {[%clk 0:02:29]}  Bxe5 {[%clk 0:02:08]} 21. Bxe5 {[%clk 0:02:29]}  Qxe5 {[%clk 0:02:08]} 22. Nf3 {[%clk 0:02:29]}  Qf6 {[%clk 0:02:09]} 23. Rc7 {[%clk 0:02:26]}  Rc8 {[%clk 0:02:03]} 24. Nd4 {[%clk 0:01:54]}  g6 {[%clk 0:01:45]} 25. R1c2 {[%clk 0:01:45]}  Qd6 {[%clk 0:01:36]} 26. Rxc8 {[%clk 0:01:09]}  Rxc8 {[%clk 0:01:37]} 27. Rxc8+ {[%clk 0:01:09]}  Bxc8 {[%clk 0:01:37]} 28. Bxe4 {[%clk 0:01:10]}  fxe4 {[%clk 0:01:35]} 29. Qc2 {[%clk 0:01:10]}  Bd7 {[%clk 0:01:35]} 30. Qc3 {[%clk 0:01:09]}  b6 {[%clk 0:01:30]} 31. b4 {[%clk 0:01:05]}  Qe5 {[%clk 0:01:22]} 32. Qa3 {[%clk 0:01:04]}  Qc7 {[%clk 0:01:22]} 33. Qb2 {[%clk 0:01:03]}  Qc4 {[%clk 0:01:20]} 34. a3 {[%clk 0:01:01]}  Kf7 {[%clk 0:00:54]} 35. Ne2 {[%clk 0:01:00]}  g5 {[%clk 0:00:34]} 36. Ng3 {[%clk 0:00:59]}  Kg6 {[%clk 0:00:16]} 37. Qe5 {[%clk 0:00:43]}  Qc6 {[%clk 0:00:15]} 38. h4 {[%clk 0:00:41]}  gxh4 {[%clk 0:00:13]} 39. Qh5+ {[%clk 0:00:41]}  Kg7 {[%clk 0:00:14]} 40. Qxh4 {[%clk 0:00:42]}  h6 {[%clk 0:00:09]} 41. Nh5+ {[%clk 0:00:41]}  Kg6 {[%clk 0:00:08]} 42. Nf4+ {[%clk 0:00:42]}  Kg7 {[%clk 0:00:09]} 43. Qe7+ {[%clk 0:00:41]}  Kg8 {[%clk 0:00:08]} 44. Nh5 {[%clk 0:00:41]}  Qc1+ {[%clk 0:00:05]} 45. Kh2 {[%clk 0:00:41]}  Qc7+ {[%clk 0:00:04]} 46. g3 {[%clk 0:00:40]} 1-0


[Site "https://www.chess.com"]

[Event "Titled Tuesday Blitz April 26 Late 2022"]
[White "Shirov, Alexei"]
[Black "Sanal, Vahap"]
[WhiteFideId "2209390"]
[BlackFideId "6300545"]
[WhiteElo "2678"]
[BlackElo "2603"]
[Result "0-1"]
[Round "10"]
[TimeControl "180+1"]
[Date "2022.04.26"]
[WhiteClock "0:00:16"]
[BlackClock "0:00:52"]

1. e4 {[%clk 0:03:00]}  e5 {[%clk 0:02:58]} 2. Nf3 {[%clk 0:03:00]}  Nc6 {[%clk 0:02:58]} 3. Bb5 {[%clk 0:02:58]}  Nf6 {[%clk 0:02:58]} 4. O-O {[%clk 0:02:57]}  Nxe4 {[%clk 0:02:58]} 5. d4 {[%clk 0:02:57]}  Nd6 {[%clk 0:02:59]} 6. Bxc6 {[%clk 0:02:56]}  dxc6 {[%clk 0:02:59]} 7. dxe5 {[%clk 0:02:56]}  Nf5 {[%clk 0:03:00]} 8. Qxd8+ {[%clk 0:02:56]}  Kxd8 {[%clk 0:03:01]} 9. h3 {[%clk 0:02:55]}  Be7 {[%clk 0:02:56]} 10. g4 {[%clk 0:02:43]}  Nh4 {[%clk 0:02:55]} 11. Nxh4 {[%clk 0:02:35]}  Bxh4 {[%clk 0:02:56]} 12. Be3 {[%clk 0:02:31]}  h5 {[%clk 0:02:45]} 13. f3 {[%clk 0:02:24]}  hxg4 {[%clk 0:02:45]} 14. hxg4 {[%clk 0:02:12]}  Bg3 {[%clk 0:02:44]} 15. Nc3 {[%clk 0:01:56]}  Bxe5 {[%clk 0:02:40]} 16. Rad1+ {[%clk 0:01:54]}  Ke8 {[%clk 0:02:33]} 17. Rfe1 {[%clk 0:01:51]}  Be6 {[%clk 0:02:30]} 18. Bd4 {[%clk 0:01:50]}  Bxd4+ {[%clk 0:02:28]} 19. Rxd4 {[%clk 0:01:49]}  Rd8 {[%clk 0:02:28]} 20. Ra4 {[%clk 0:01:43]}  a6 {[%clk 0:02:14]} 21. f4 {[%clk 0:01:42]}  Kf8 {[%clk 0:02:13]} 22. f5 {[%clk 0:01:41]}  Bd5 {[%clk 0:02:06]} 23. Nxd5 {[%clk 0:01:37]}  cxd5 {[%clk 0:02:07]} 24. Rd4 {[%clk 0:01:35]}  c5 {[%clk 0:02:05]} 25. Rf4 {[%clk 0:01:21]}  Re8 {[%clk 0:02:03]} 26. Rxe8+ {[%clk 0:01:11]}  Kxe8 {[%clk 0:02:04]} 27. b4 {[%clk 0:01:07]}  Kd7 {[%clk 0:01:58]} 28. bxc5 {[%clk 0:00:59]}  Rc8 {[%clk 0:01:58]} 29. Rb4 {[%clk 0:00:56]}  Rxc5 {[%clk 0:01:43]} 30. Rxb7+ {[%clk 0:00:55]}  Rc7 {[%clk 0:01:44]} 31. Rb6 {[%clk 0:00:49]}  Rc6 {[%clk 0:01:40]} 32. Rb7+ {[%clk 0:00:49]}  Rc7 {[%clk 0:01:41]} 33. Rb6 {[%clk 0:00:49]}  Rxc2 {[%clk 0:01:41]} 34. Rxa6 {[%clk 0:00:49]}  Rc4 {[%clk 0:01:42]} 35. Ra7+ {[%clk 0:00:44]}  Ke8 {[%clk 0:01:42]} 36. Kf2 {[%clk 0:00:41]}  Rxg4 {[%clk 0:01:42]} 37. Kf3 {[%clk 0:00:40]}  Re4 {[%clk 0:01:39]} 38. a4 {[%clk 0:00:39]}  Re1 {[%clk 0:01:21]} 39. a5 {[%clk 0:00:39]}  d4 {[%clk 0:01:22]} 40. a6 {[%clk 0:00:34]}  d3 {[%clk 0:01:22]} 41. Ra8+ {[%clk 0:00:33]}  Ke7 {[%clk 0:01:22]} 42. a7 {[%clk 0:00:30]}  Ra1 {[%clk 0:01:02]} 43. Ke3 {[%clk 0:00:28]}  Kf6 {[%clk 0:01:01]} 44. Kxd3 {[%clk 0:00:27]}  Kxf5 {[%clk 0:01:02]} 45. Rg8 {[%clk 0:00:26]}  Rxa7 {[%clk 0:01:01]} 46. Rxg7 {[%clk 0:00:26]}  Re7 {[%clk 0:01:01]} 47. Kd2 {[%clk 0:00:25]}  Kf6 {[%clk 0:00:57]} 48. Rg1 {[%clk 0:00:24]}  Re8 {[%clk 0:00:57]} 49. Rf1+ {[%clk 0:00:23]}  Kg6 {[%clk 0:00:57]} 50. Rg1+ {[%clk 0:00:23]}  Kh5 {[%clk 0:00:58]} 51. Rh1+ {[%clk 0:00:23]}  Kg4 {[%clk 0:00:58]} 52. Rg1+ {[%clk 0:00:23]}  Kh3 {[%clk 0:00:57]} 53. Rf1 {[%clk 0:00:20]}  Re7 {[%clk 0:00:57]} 54. Rf6 {[%clk 0:00:18]}  Kg4 {[%clk 0:00:57]} 55. Kd3 {[%clk 0:00:18]}  Kg5 {[%clk 0:00:58]} 56. Rf1 {[%clk 0:00:17]}  f5 {[%clk 0:00:58]} 57. Rg1+ {[%clk 0:00:17]}  Kh4 {[%clk 0:00:58]} 58. Rh1+ {[%clk 0:00:17]}  Kg3 {[%clk 0:00:58]} 59. Rg1+ {[%clk 0:00:17]}  Kf2 {[%clk 0:00:53]} 60. Rg8 {[%clk 0:00:16]}  f4 {[%clk 0:00:52]} 0-1


[Site "https://www.chess.com"]

[Event "Titled Tuesday Blitz April 26 Late 2022"]
[White "Shuvalova, Polina"]
[Black "Papp, Petra"]
[WhiteFideId "24171760"]
[BlackFideId "739049"]
[WhiteElo "2355"]
[BlackElo "2259"]
[Result "1-0"]
[Round "10"]
[TimeControl "180+1"]
[Date "2022.04.26"]
[WhiteClock "0:00:08"]
[BlackClock "0:00:03"]

1. d4 {[%clk 0:03:00]}  Nf6 {[%clk 0:02:59]} 2. Nf3 {[%clk 0:03:01]}  c5 {[%clk 0:02:59]} 3. e3 {[%clk 0:02:57]}  g6 {[%clk 0:02:51]} 4. Bd3 {[%clk 0:02:55]}  Bg7 {[%clk 0:02:51]} 5. O-O {[%clk 0:02:56]}  O-O {[%clk 0:02:51]} 6. dxc5 {[%clk 0:02:55]}  Qc7 {[%clk 0:02:37]} 7. e4 {[%clk 0:02:53]}  Qxc5 {[%clk 0:02:35]} 8. Nc3 {[%clk 0:02:48]}  d6 {[%clk 0:02:29]} 9. Be3 {[%clk 0:02:47]}  Qa5 {[%clk 0:02:29]} 10. h3 {[%clk 0:02:46]}  Nc6 {[%clk 0:02:28]} 11. a3 {[%clk 0:02:46]}  Be6 {[%clk 0:02:25]} 12. Ng5 {[%clk 0:02:44]}  Bd7 {[%clk 0:02:20]} 13. f4 {[%clk 0:02:44]}  a6 {[%clk 0:02:14]} 14. Qf3 {[%clk 0:02:44]}  b5 {[%clk 0:02:10]} 15. Nd5 {[%clk 0:02:38]}  Nxd5 {[%clk 0:02:07]} 16. exd5 {[%clk 0:02:38]}  Nd4 {[%clk 0:02:06]} 17. Qf2 {[%clk 0:02:37]}  Nf5 {[%clk 0:02:02]} 18. Bb6 {[%clk 0:02:37]}  Qxb6 {[%clk 0:01:54]} 19. Qxb6 {[%clk 0:02:35]}  Bd4+ {[%clk 0:01:54]} 20. Qxd4 {[%clk 0:02:34]}  Nxd4 {[%clk 0:01:55]} 21. Rae1 {[%clk 0:02:33]}  h6 {[%clk 0:01:33]} 22. Nf3 {[%clk 0:02:28]}  Nxf3+ {[%clk 0:01:30]} 23. Rxf3 {[%clk 0:02:29]}  Rfe8 {[%clk 0:01:29]} 24. f5 {[%clk 0:02:27]}  g5 {[%clk 0:01:28]} 25. Rfe3 {[%clk 0:02:22]}  Kf8 {[%clk 0:01:27]} 26. Kh2 {[%clk 0:02:22]}  f6 {[%clk 0:01:21]} 27. c3 {[%clk 0:02:00]}  Ra7 {[%clk 0:01:09]} 28. Kg3 {[%clk 0:01:54]}  h5 {[%clk 0:01:07]} 29. Be2 {[%clk 0:01:49]}  Bxf5 {[%clk 0:01:04]} 30. Bxh5 {[%clk 0:01:48]}  Rc8 {[%clk 0:01:05]} 31. Bg4 {[%clk 0:01:44]}  Bxg4 {[%clk 0:01:00]} 32. Kxg4 {[%clk 0:01:45]}  Rc5 {[%clk 0:01:00]} 33. Rd3 {[%clk 0:01:43]}  a5 {[%clk 0:00:57]} 34. Re4 {[%clk 0:01:40]}  Kf7 {[%clk 0:00:55]} 35. g3 {[%clk 0:01:23]}  Ra8 {[%clk 0:00:55]} 36. Kf3 {[%clk 0:01:15]}  Rh8 {[%clk 0:00:52]} 37. h4 {[%clk 0:01:09]}  f5 {[%clk 0:00:46]} 38. Red4 {[%clk 0:01:07]}  Kf6 {[%clk 0:00:44]} 39. Re3 {[%clk 0:01:01]}  gxh4 {[%clk 0:00:35]} 40. gxh4 {[%clk 0:01:01]}  Rc4 {[%clk 0:00:30]} 41. Rxc4 {[%clk 0:00:35]}  bxc4 {[%clk 0:00:30]} 42. Kg3 {[%clk 0:00:35]}  f4+ {[%clk 0:00:30]} 43. Kxf4 {[%clk 0:00:34]}  Rxh4+ {[%clk 0:00:30]} 44. Kg3 {[%clk 0:00:33]}  Rh5 {[%clk 0:00:30]} 45. Re6+ {[%clk 0:00:30]}  Kf7 {[%clk 0:00:30]} 46. Re4 {[%clk 0:00:30]}  Rxd5 {[%clk 0:00:29]} 47. Rxc4 {[%clk 0:00:31]}  Rd2 {[%clk 0:00:26]} 48. b3 {[%clk 0:00:20]}  d5 {[%clk 0:00:21]} 49. Ra4 {[%clk 0:00:19]}  Rd3+ {[%clk 0:00:21]} 50. Kf4 {[%clk 0:00:18]}  Rxc3 {[%clk 0:00:21]} 51. Rxa5 {[%clk 0:00:19]}  Rxb3 {[%clk 0:00:20]} 52. Rxd5 {[%clk 0:00:18]}  Rxa3 {[%clk 0:00:19]} 53. Rd7 {[%clk 0:00:16]}  Kf6 {[%clk 0:00:19]} 54. Rb7 {[%clk 0:00:16]}  Rc3 {[%clk 0:00:18]} 55. Ke4 {[%clk 0:00:16]}  e6 {[%clk 0:00:18]} 56. Ra7 {[%clk 0:00:16]}  Rh3 {[%clk 0:00:17]} 57. Ra6 {[%clk 0:00:16]}  Rh4+ {[%clk 0:00:16]} 58. Ke3 {[%clk 0:00:16]}  Kf5 {[%clk 0:00:16]} 59. Ra5+ {[%clk 0:00:15]}  e5 {[%clk 0:00:16]} 60. Ke2 {[%clk 0:00:15]}  Rh3 {[%clk 0:00:09]} 61. Ra4 {[%clk 0:00:11]}  Rh2+ {[%clk 0:00:01]} 62. Kf3 {[%clk 0:00:09]}  Rh3+ {[%clk 0:00:01]} 63. Kg2 {[%clk 0:00:09]}  Rh2+ {[%clk 0:00:02]} 64. Kxh2 {[%clk 0:00:09]}  e4 {[%clk 0:00:03]} 65. Kg3 {[%clk 0:00:08]}  Ke5 {[%clk 0:00:03]} 66. Kf2 {[%clk 0:00:09]}  Kf4 {[%clk 0:00:03]} 67. Ke2 {[%clk 0:00:08]} 1-0


[Site "https://www.chess.com"]

[Event "Titled Tuesday Blitz April 26 Late 2022"]
[White "Sliwicka, Alicja"]
[Black "Hnydiuk, Aleksander"]
[WhiteFideId "1150677"]
[BlackFideId "1109057"]
[WhiteElo "2120"]
[BlackElo "2374"]
[Result "0-1"]
[Round "10"]
[TimeControl "180+1"]
[Date "2022.04.26"]
[WhiteClock "0:00:52"]
[BlackClock "0:02:08"]

1. e4 {[%clk 0:03:00]}  Nf6 {[%clk 0:03:00]} 2. e5 {[%clk 0:03:01]}  Nd5 {[%clk 0:03:00]} 3. d4 {[%clk 0:03:01]}  d6 {[%clk 0:03:01]} 4. c4 {[%clk 0:03:02]}  Nb6 {[%clk 0:03:00]} 5. exd6 {[%clk 0:03:03]}  exd6 {[%clk 0:03:00]} 6. Nc3 {[%clk 0:02:59]}  Be7 {[%clk 0:03:00]} 7. Be3 {[%clk 0:02:57]}  O-O {[%clk 0:02:58]} 8. Bd3 {[%clk 0:02:57]}  Nc6 {[%clk 0:02:59]} 9. Nge2 {[%clk 0:02:56]}  Bg4 {[%clk 0:02:56]} 10. a3 {[%clk 0:02:42]}  Re8 {[%clk 0:02:55]} 11. O-O {[%clk 0:02:40]}  d5 {[%clk 0:02:52]} 12. c5 {[%clk 0:02:29]}  Nc4 {[%clk 0:02:52]} 13. Bc1 {[%clk 0:02:29]}  Nxd4 {[%clk 0:02:46]} 14. Bxc4 {[%clk 0:02:25]}  Bxc5 {[%clk 0:02:25]} 15. Bd3 {[%clk 0:02:20]}  Qh4 {[%clk 0:02:21]} 16. Be3 {[%clk 0:02:09]}  Nf3+ {[%clk 0:02:14]} 17. gxf3 {[%clk 0:02:00]}  Bxf3 {[%clk 0:02:15]} 18. Bxc5 {[%clk 0:01:20]}  Qh3 {[%clk 0:02:11]} 19. Bxh7+ {[%clk 0:01:04]}  Kh8 {[%clk 0:02:10]} 20. Nf4 {[%clk 0:00:52]}  Qg4+ {[%clk 0:02:08]} 0-1


[Site "https://www.chess.com"]

[Event "Titled Tuesday Blitz April 26 Late 2022"]
[White "Stanisz, Patryk"]
[Black "Pinheiro, Iung Alicio de O."]
[WhiteFideId "1123106"]
[BlackFideId "2104350"]
[WhiteElo "1833"]
[BlackElo "2465"]
[Result "1-0"]
[Round "10"]
[TimeControl "180+1"]
[Date "2022.04.26"]
[WhiteClock "0:00:12"]
[BlackClock "0:00:13"]

1. d4 {[%clk 0:03:00]}  c5 {[%clk 0:02:58]} 2. d5 {[%clk 0:02:59]}  e5 {[%clk 0:02:55]} 3. Nc3 {[%clk 0:02:58]}  d6 {[%clk 0:02:54]} 4. e4 {[%clk 0:02:56]}  a6 {[%clk 0:02:54]} 5. a4 {[%clk 0:02:55]}  Be7 {[%clk 0:02:54]} 6. b3 {[%clk 0:02:45]}  Bg5 {[%clk 0:02:53]} 7. Bb2 {[%clk 0:02:46]}  Ne7 {[%clk 0:02:46]} 8. h3 {[%clk 0:02:45]}  f5 {[%clk 0:02:29]} 9. Qh5+ {[%clk 0:02:37]}  Ng6 {[%clk 0:02:28]} 10. Nf3 {[%clk 0:02:09]}  Bh6 {[%clk 0:01:39]} 11. exf5 {[%clk 0:02:04]}  Qf6 {[%clk 0:01:31]} 12. Ne4 {[%clk 0:01:51]}  Qd8 {[%clk 0:01:09]} 13. fxg6 {[%clk 0:01:51]}  O-O {[%clk 0:01:09]} 14. gxh7+ {[%clk 0:01:37]}  Kh8 {[%clk 0:01:07]} 15. Bd3 {[%clk 0:01:32]}  Rf5 {[%clk 0:00:48]} 16. Qh4 {[%clk 0:01:16]}  Qf8 {[%clk 0:00:44]} 17. Neg5 {[%clk 0:00:57]}  Rf4 {[%clk 0:00:38]} 18. Qh5 {[%clk 0:00:46]}  Bf5 {[%clk 0:00:19]} 19. O-O-O {[%clk 0:00:39]}  Bxd3 {[%clk 0:00:17]} 20. Rxd3 {[%clk 0:00:40]}  Qf5 {[%clk 0:00:17]} 21. g3 {[%clk 0:00:22]}  Rxf3 {[%clk 0:00:12]} 22. Rxf3 {[%clk 0:00:19]}  Qxg5+ {[%clk 0:00:09]} 23. Qxg5 {[%clk 0:00:18]}  Bxg5+ {[%clk 0:00:10]} 24. Kb1 {[%clk 0:00:17]}  Nd7 {[%clk 0:00:10]} 25. Rf7 {[%clk 0:00:17]}  Rd8 {[%clk 0:00:10]} 26. f4 {[%clk 0:00:16]}  Bf6 {[%clk 0:00:09]} 27. g4 {[%clk 0:00:15]}  Kxh7 {[%clk 0:00:09]} 28. g5 {[%clk 0:00:15]}  Kg8 {[%clk 0:00:09]} 29. Rxd7 {[%clk 0:00:16]}  Rxd7 {[%clk 0:00:10]} 30. gxf6 {[%clk 0:00:17]}  gxf6 {[%clk 0:00:10]} 31. fxe5 {[%clk 0:00:17]}  dxe5 {[%clk 0:00:11]} 32. Ba3 {[%clk 0:00:17]}  Rxd5 {[%clk 0:00:11]} 33. c4 {[%clk 0:00:17]}  Rd3 {[%clk 0:00:11]} 34. Kc2 {[%clk 0:00:14]}  Rg3 {[%clk 0:00:11]} 35. Bxc5 {[%clk 0:00:14]}  Kf7 {[%clk 0:00:11]} 36. h4 {[%clk 0:00:13]}  Kg6 {[%clk 0:00:11]} 37. h5+ {[%clk 0:00:13]}  Kh6 {[%clk 0:00:11]} 38. Bf8+ {[%clk 0:00:14]}  Kh7 {[%clk 0:00:11]} 39. h6 {[%clk 0:00:14]}  f5 {[%clk 0:00:11]} 40. Bg7 {[%clk 0:00:15]}  e4 {[%clk 0:00:11]} 41. Rf1 {[%clk 0:00:15]}  Rg5 {[%clk 0:00:08]} 42. Kc3 {[%clk 0:00:12]}  Rg3+ {[%clk 0:00:08]} 43. Kb4 {[%clk 0:00:11]}  Rg5 {[%clk 0:00:06]} 44. a5 {[%clk 0:00:10]}  Rh5 {[%clk 0:00:06]} 45. Kc3 {[%clk 0:00:09]}  Rh3+ {[%clk 0:00:05]} 46. Kb4 {[%clk 0:00:08]}  Rh5 {[%clk 0:00:05]} 47. c5 {[%clk 0:00:08]}  Rg5 {[%clk 0:00:04]} 48. Kc4 {[%clk 0:00:09]}  Rh5 {[%clk 0:00:04]} 49. b4 {[%clk 0:00:09]}  e3 {[%clk 0:00:03]} 50. Kd3 {[%clk 0:00:09]}  Rh3 {[%clk 0:00:03]} 51. Rxf5 {[%clk 0:00:07]}  e2+ {[%clk 0:00:03]} 52. Kxe2 {[%clk 0:00:08]}  Rb3 {[%clk 0:00:03]} 53. Rf4 {[%clk 0:00:07]}  Ra3 {[%clk 0:00:04]} 54. Rd4 {[%clk 0:00:07]}  Ra2+ {[%clk 0:00:05]} 55. Ke3 {[%clk 0:00:07]}  Rh2 {[%clk 0:00:06]} 56. Ke4 {[%clk 0:00:07]}  Rh4+ {[%clk 0:00:06]} 57. Kd5 {[%clk 0:00:08]}  Rh5+ {[%clk 0:00:07]} 58. Kd6 {[%clk 0:00:09]}  Rh3 {[%clk 0:00:07]} 59. Kc7 {[%clk 0:00:09]}  Rh5 {[%clk 0:00:06]} 60. Kxb7 {[%clk 0:00:09]}  Rf5 {[%clk 0:00:07]} 61. Kxa6 {[%clk 0:00:09]}  Rf7 {[%clk 0:00:08]} 62. Kb6 {[%clk 0:00:09]}  Re7 {[%clk 0:00:08]} 63. c6 {[%clk 0:00:10]}  Re6 {[%clk 0:00:09]} 64. Kb7 {[%clk 0:00:10]}  Re7+ {[%clk 0:00:09]} 65. c7 {[%clk 0:00:10]}  Rf7 {[%clk 0:00:09]} 66. Kb8 {[%clk 0:00:11]}  Rd7 {[%clk 0:00:08]} 67. Rxd7 {[%clk 0:00:10]}  Kg6 {[%clk 0:00:08]} 68. c8=Q {[%clk 0:00:10]}  Kh7 {[%clk 0:00:09]} 69. Qh8+ {[%clk 0:00:09]}  Kg6 {[%clk 0:00:10]} 70. Rd6+ {[%clk 0:00:10]}  Kh5 {[%clk 0:00:10]} 71. Qe8+ {[%clk 0:00:10]}  Kg5 {[%clk 0:00:11]} 72. Qe5+ {[%clk 0:00:10]}  Kh4 {[%clk 0:00:11]} 73. Rd4+ {[%clk 0:00:11]}  Kh3 {[%clk 0:00:11]} 74. Qe3+ {[%clk 0:00:12]}  Kg2 {[%clk 0:00:12]} 75. Rd2+ {[%clk 0:00:12]}  Kf1 {[%clk 0:00:13]} 76. Qe2+ {[%clk 0:00:12]}  Kg1 {[%clk 0:00:13]} 77. Qe1# {[%clk 0:00:12]} 1-0


[Site "https://www.chess.com"]

[Event "Titled Tuesday Blitz April 26 Late 2022"]
[White "Swiercz, Dariusz"]
[Black "Szpar, Milosz"]
[WhiteFideId "1126881"]
[BlackFideId "1184989"]
[WhiteElo "2627"]
[BlackElo "2447"]
[Result "1-0"]
[Round "10"]
[TimeControl "180+1"]
[Date "2022.04.26"]
[WhiteClock "0:00:37"]
[BlackClock "0:00:13"]

1. c4 {[%clk 0:03:00]}  e5 {[%clk 0:02:58]} 2. Nc3 {[%clk 0:03:01]}  Nc6 {[%clk 0:02:57]} 3. g3 {[%clk 0:03:01]}  g6 {[%clk 0:02:58]} 4. Bg2 {[%clk 0:03:02]}  Bg7 {[%clk 0:02:58]} 5. Nf3 {[%clk 0:03:02]}  d6 {[%clk 0:02:57]} 6. O-O {[%clk 0:03:03]}  Nf6 {[%clk 0:02:56]} 7. d3 {[%clk 0:03:03]}  O-O {[%clk 0:02:56]} 8. Rb1 {[%clk 0:03:04]}  a5 {[%clk 0:02:55]} 9. a3 {[%clk 0:03:04]}  h6 {[%clk 0:02:54]} 10. b4 {[%clk 0:03:04]}  axb4 {[%clk 0:02:53]} 11. axb4 {[%clk 0:03:04]}  Ne7 {[%clk 0:02:48]} 12. b5 {[%clk 0:03:04]}  Be6 {[%clk 0:02:19]} 13. Bb2 {[%clk 0:03:03]}  Nd7 {[%clk 0:02:12]} 14. Ra1 {[%clk 0:03:03]}  c6 {[%clk 0:02:09]} 15. Rxa8 {[%clk 0:02:59]}  Qxa8 {[%clk 0:02:09]} 16. Qa1 {[%clk 0:02:58]}  Qb8 {[%clk 0:02:05]} 17. Rb1 {[%clk 0:02:53]}  Qc7 {[%clk 0:01:54]} 18. Qa3 {[%clk 0:02:36]}  Re8 {[%clk 0:01:44]} 19. Ne4 {[%clk 0:02:22]}  d5 {[%clk 0:01:23]} 20. bxc6 {[%clk 0:01:58]}  bxc6 {[%clk 0:01:14]} 21. Nc5 {[%clk 0:01:57]}  Nxc5 {[%clk 0:00:51]} 22. Qxc5 {[%clk 0:01:58]}  Qb8 {[%clk 0:00:51]} 23. Nd2 {[%clk 0:01:55]}  Bf8 {[%clk 0:00:48]} 24. Qa5 {[%clk 0:01:41]}  Rc8 {[%clk 0:00:46]} 25. Bc3 {[%clk 0:01:36]}  Qd6 {[%clk 0:00:44]} 26. c5 {[%clk 0:01:36]}  Qd7 {[%clk 0:00:40]} 27. Bxe5 {[%clk 0:01:36]}  Nf5 {[%clk 0:00:41]} 28. Nf3 {[%clk 0:01:32]}  Be7 {[%clk 0:00:36]} 29. Nd4 {[%clk 0:01:29]}  Nxd4 {[%clk 0:00:36]} 30. Bxd4 {[%clk 0:01:30]}  Bg4 {[%clk 0:00:36]} 31. Qd2 {[%clk 0:01:19]}  h5 {[%clk 0:00:36]} 32. Qh6 {[%clk 0:01:15]}  f6 {[%clk 0:00:28]} 33. Qxg6+ {[%clk 0:01:14]}  Kf8 {[%clk 0:00:28]} 34. Bxf6 {[%clk 0:01:11]}  Bxc5 {[%clk 0:00:29]} 35. h3 {[%clk 0:00:58]}  Bf5 {[%clk 0:00:29]} 36. Qxh5 {[%clk 0:00:56]}  Qh7 {[%clk 0:00:27]} 37. Qxh7 {[%clk 0:00:52]}  Bxh7 {[%clk 0:00:28]} 38. Rc1 {[%clk 0:00:53]}  Ba3 {[%clk 0:00:26]} 39. Ra1 {[%clk 0:00:49]}  Bd6 {[%clk 0:00:25]} 40. Ra7 {[%clk 0:00:47]}  Bf5 {[%clk 0:00:24]} 41. h4 {[%clk 0:00:43]}  Rb8 {[%clk 0:00:22]} 42. Bf3 {[%clk 0:00:42]}  Bh3 {[%clk 0:00:21]} 43. Kh2 {[%clk 0:00:42]}  Be6 {[%clk 0:00:21]} 44. Kg2 {[%clk 0:00:41]}  Bc5 {[%clk 0:00:18]} 45. Ra6 {[%clk 0:00:41]}  Rc8 {[%clk 0:00:18]} 46. h5 {[%clk 0:00:41]}  Kf7 {[%clk 0:00:18]} 47. Be5 {[%clk 0:00:41]}  Bd7 {[%clk 0:00:15]} 48. d4 {[%clk 0:00:41]}  Be7 {[%clk 0:00:15]} 49. Ra7 {[%clk 0:00:41]}  Rd8 {[%clk 0:00:14]} 50. e3 {[%clk 0:00:40]}  Be6 {[%clk 0:00:13]} 51. Bf4 {[%clk 0:00:40]}  Rd7 {[%clk 0:00:13]} 52. Ra6 {[%clk 0:00:38]}  c5 {[%clk 0:00:13]} 53. Rxe6 {[%clk 0:00:37]} 1-0


[Site "https://www.chess.com"]